bitfinex-derivatives/quotes_BTCF0:USTF0_20241128
["timestamp","ask_amount","ask_price","bid_price","bid_amount"]
[1732797357705,0.20844835,95409.0,95408.0,0.052388]
[1732797357903,0.20744835,95409.0,95408.0,0.057388]
[1732797358103,0.20831297,95409.0,95408.0,0.057388]
[1732797358306,0.20831297,95409.0,95408.0,0.005]
[1732797358505,0.08367205,95409.0,95408.0,0.005]
[1732797358912,0.08567205,95409.0,95408.0,0.005]
[1732797360203,0.08567205,95409.0,95408.0,0.057388]
[1732797360803,0.08767205,95409.0,95408.0,0.052388]
[1732797361608,0.03528505,95409.0,95404.0,0.05239]
[1732797361910,0.052389,95405.0,95404.0,0.05239]
[1732797362912,0.052393,95400.0,95399.0,0.052393]
[1732797363122,0.03528505,95409.0,95408.0,0.052388]
[1732797363309,0.00308505,95409.0,95408.0,0.414188]
[1732797363624,0.3608,95423.0,95408.0,0.414188]
[1732797363625,0.12465951,95424.0,95409.0,0.052387]
[1732797363810,0.17703251,95435.0,95433.0,0.052374]
[1732797364113,0.12465951,95437.0,95424.0,0.0331]
[1732797364313,0.19686199,95439.0,95424.0,0.0331]
[1732797364314,0.3215215,95439.0,95424.0,0.0331]
[1732797364619,0.052373,95436.0,95435.0,0.052371]
[1732797364817,0.00010604,95436.0,95424.0,0.0331]
[1732797365013,0.052376,95430.0,95429.0,0.052376]
[1732797366712,0.055376,95430.0,95429.0,0.052376]
[1732797367511,0.008,95430.0,95429.0,0.052376]
[1732797367909,0.008,95430.0,95423.0,0.3728551]
[1732797368119,0.008,95430.0,95423.0,0.3608]
[1732797368339,0.052379,95424.0,95423.0,0.413179]
[1732797368815,0.052379,95424.0,95423.0,0.052379]
[1732797369920,0.053379,95424.0,95423.0,0.052379]
[1732797370315,0.001,95424.0,95423.0,0.052379]
[1732797370717,0.055379,95424.0,95423.0,0.052379]
[1732797371518,0.055379,95424.0,95420.0,0.37275258]
[1732797371519,0.052381,95421.0,95420.0,0.42513258]
[1732797371726,0.052381,95423.0,95422.0,0.052379]
[1732797372017,0.003,95424.0,95423.0,0.052379]
[1732797372915,0.001,95424.0,95423.0,0.054379]
[1732797373519,0.002,95424.0,95423.0,0.052379]
[1732797374115,0.001,95424.0,95423.0,0.052379]
[1732797374312,0.003,95424.0,95423.0,0.052379]
[1732797375515,0.002,95424.0,95423.0,0.052379]
[1732797375723,0.003,95424.0,95423.0,0.052379]
[1732797377512,0.003,95424.0,95423.0,0.07530742]
[1732797379122,0.003,95424.0,95423.0,0.70126726]
[1732797379418,0.12476555,95436.0,95423.0,1.07199602]
[1732797379626,0.00010604,95436.0,95435.0,0.413173]
[1732797379817,0.00010604,95436.0,95435.0,0.45706303]
[1732797380417,0.00010604,95436.0,95435.0,0.42299877]
[1732797380617,0.00010604,95436.0,95435.0,0.43609904]
[1732797380817,0.05247804,95436.0,95435.0,0.07529904]
[1732797381021,0.06147804,95436.0,95435.0,0.001]
[1732797381718,0.052379,95424.0,95423.0,0.00010299]
[1732797383015,0.055379,95424.0,95423.0,0.05248199]
[1732797383930,0.003,95424.0,95423.0,0.05248199]
[1732797384130,0.055379,95424.0,95423.0,0.00010299]
[1732797385834,0.052383,95416.0,95415.0,0.00157201]
[1732797386128,0.052394,95397.0,95396.0,0.55025189]
[1732797386326,0.052394,95397.0,95396.0,0.39487301]
[1732797386528,0.052394,95397.0,95396.0,0.3608]
[1732797386732,0.052394,95397.0,95396.0,0.41326943]
[1732797387819,0.053394,95397.0,95396.0,0.42226943]
[1732797389126,0.054394,95397.0,95396.0,0.42226943]
[1732797390237,0.053394,95397.0,95396.0,0.41326943]
[1732797390424,0.054394,95397.0,95396.0,0.41326943]
[1732797390939,0.053394,95397.0,95396.0,0.41326943]
[1732797391326,0.001,95397.0,95396.0,0.41326943]
[1732797391635,0.002,95397.0,95396.0,0.41326943]
[1732797391823,0.002,95397.0,95396.0,0.44734436]
[1732797392520,0.002,95397.0,95396.0,0.41326943]
[1732797393122,0.002,95397.0,95396.0,0.44734423]
[1732797394733,0.002,95397.0,95396.0,0.45717346]
[1732797395226,0.002,95397.0,95396.0,0.40477946]
[1732797395427,0.054394,95397.0,95396.0,7.543e-05]
[1732797395625,0.002,95397.0,95396.0,0.05246943]
[1732797395826,0.054394,95397.0,95396.0,0.05246943]
[1732797397233,0.054394,95397.0,95396.0,7.543e-05]
[1732797397435,0.052399,95388.0,95387.0,0.01201726]
[1732797397624,0.052399,95388.0,95387.0,0.0098302]
[1732797397829,0.0524,95386.0,95385.0,0.3608]
[1732797398036,0.0524,95386.0,95385.0,0.37281833]
[1732797398630,0.0524,95386.0,95385.0,0.37292175]
[1732797399430,0.0524,95386.0,95385.0,0.42532175]
[1732797399834,0.0524,95386.0,95385.0,0.06452175]
[1732797400236,0.0524,95386.0,95385.0,0.06952175]
[1732797402038,0.0524,95386.0,95385.0,0.00510342]
[1732797402445,0.2104,95386.0,95385.0,0.00510342]
[1732797405430,0.22214268,95386.0,95385.0,0.00510342]
[1732797405830,0.25464268,95386.0,95385.0,0.00510342]
[1732797410948,0.09664268,95386.0,95385.0,0.00510342]
[1732797411133,0.0524,95386.0,95385.0,0.05750342]
[1732797411534,0.1908,95395.0,95385.0,0.05750342]
[1732797411741,0.052397,95394.0,95393.0,0.052396]
[1732797412442,0.210397,95394.0,95393.0,0.052396]
[1732797412846,0.052397,95394.0,95393.0,0.052396]
[1732797414044,0.052397,95394.0,95393.0,0.053396]
[1732797414747,0.061397,95394.0,95393.0,0.053396]
[1732797416039,0.064397,95394.0,95393.0,0.053396]
[1732797417548,0.065397,95394.0,95393.0,0.053396]
[1732797417743,0.066397,95394.0,95393.0,0.001]
[1732797418246,0.065395,95394.0,95393.0,0.001]
[1732797418443,0.060395,95394.0,95393.0,0.001]
[1732797418748,0.064395,95394.0,95393.0,0.001]
[1732797418956,0.052399,95390.0,95389.0,0.052398]
[1732797419142,0.052399,95390.0,95385.0,0.00010342]
[1732797419143,0.0524,95386.0,95385.0,0.00010342]
[1732797419846,0.0524,95386.0,95385.0,0.05250342]
[1732797420044,0.0524,95386.0,95385.0,0.00010342]
[1732797420247,0.2104,95386.0,95385.0,0.00010342]
[1732797421750,0.0524,95386.0,95385.0,0.00010342]
[1732797421940,0.0524,95386.0,95385.0,0.05250342]
[1732797421941,0.158,95386.0,95385.0,0.05250342]
[1732797422755,0.167,95386.0,95385.0,0.05350342]
[1732797423055,0.014,95386.0,95385.0,0.05350342]
[1732797423444,0.014,95386.0,95385.0,0.08758175]
[1732797423646,0.014,95386.0,95385.0,0.097412]
[1732797424452,0.005,95386.0,95385.0,0.096412]
[1732797424652,0.007,95386.0,95385.0,0.096412]
[1732797425042,0.003,95386.0,95385.0,0.10847009]
[1732797425252,0.007,95386.0,95385.0,0.10847009]
[1732797425452,0.006,95386.0,95385.0,0.10847009]
[1732797425647,0.002,95386.0,95385.0,0.10847009]
[1732797425849,0.006,95386.0,95385.0,0.10847009]
[1732797426347,0.007,95386.0,95385.0,0.10847009]
[1732797426950,0.0594,95386.0,95385.0,0.31449918]
[1732797427269,0.0594,95386.0,95385.0,0.06456151]
[1732797427558,0.0604,95386.0,95385.0,0.06456151]
[1732797427855,0.0594,95386.0,95385.0,0.06456151]
[1732797428056,0.0544,95386.0,95385.0,0.06456151]
[1732797428251,0.0584,95386.0,95385.0,0.06456151]
[1732797428649,0.0544,95386.0,95385.0,0.06456151]
[1732797428848,0.0584,95386.0,95385.0,0.06456151]
[1732797429045,0.0584,95386.0,95385.0,0.05250342]
[1732797429258,0.0544,95386.0,95385.0,0.00010342]
[1732797429566,0.0574,95386.0,95385.0,0.00010342]
[1732797429855,0.2174,95386.0,95385.0,0.05250342]
[1732797430746,0.37329623,95386.0,95385.0,0.05250342]
[1732797430950,0.36829623,95386.0,95385.0,0.00010342]
[1732797431153,0.2174,95386.0,95385.0,0.00010342]
[1732797431351,0.2184,95386.0,95385.0,0.00010342]
[1732797431663,0.2184,95386.0,95385.0,0.00110342]
[1732797431664,0.2194,95386.0,95385.0,0.00110342]
[1732797432252,0.2144,95386.0,95385.0,0.00010342]
[1732797432566,0.2224,95386.0,95385.0,0.00110342]
[1732797433159,0.0644,95386.0,95385.0,0.05350342]
[1732797433852,0.22027372,95386.0,95385.0,0.05350342]
[1732797434253,0.0654,95386.0,95385.0,0.05350342]
[1732797434663,0.005,95386.0,95385.0,0.05250342]
[1732797434865,0.013,95386.0,95385.0,0.24195337]
[1732797435056,0.00157288,95406.0,95400.0,0.052392]
[1732797435057,0.1574466,95406.0,95400.0,0.052392]
[1732797435367,0.00157288,95406.0,95405.0,0.413189]
[1732797435570,0.00157288,95406.0,95405.0,0.91595803]
[1732797435759,0.00157288,95406.0,95405.0,0.413189]
[1732797436064,0.48733212,95420.0,95402.0,0.24070668]
[1732797436065,0.3608,95411.0,95402.0,0.24070668]
[1732797436362,0.061389,95406.0,95405.0,0.052387]
[1732797436565,0.061389,95406.0,95400.0,0.12753212]
[1732797436566,0.052392,95402.0,95400.0,0.001]
[1732797436770,0.052392,95402.0,95401.0,0.05239]
[1732797437460,0.017,95406.0,95405.0,0.052389]
[1732797437962,0.3608,95420.0,95405.0,0.35833982]
[1732797438159,0.3608,95420.0,95415.0,0.052384]
[1732797438160,0.052383,95416.0,95415.0,0.052384]
[1732797438367,0.3608,95420.0,95415.0,0.052384]
[1732797438368,0.3608,95420.0,95415.0,0.18815698]
[1732797438562,0.3608,95420.0,95419.0,0.052382]
[1732797439073,0.413181,95420.0,95419.0,0.052382]
[1732797439363,0.004,95416.0,95415.0,0.053384]
[1732797439565,0.056383,95416.0,95415.0,0.001]
[1732797440267,0.056383,95416.0,95408.0,0.052387]
[1732797440268,0.052387,95409.0,95408.0,0.052387]
[1732797440457,0.3608,95412.0,95402.0,0.052391]
[1732797440659,0.05239,95403.0,95402.0,0.052391]
[1732797442364,0.05439,95403.0,95402.0,0.052391]
[1732797443467,0.002,95403.0,95402.0,0.052391]
[1732797443864,0.002,95403.0,95402.0,0.07335901]
[1732797444060,0.002,95403.0,95402.0,0.09629276]
[1732797444465,0.211941,95421.0,95402.0,0.41073276]
[1732797444664,0.052382,95419.0,95418.0,0.052382]
[1732797445260,0.15956,95421.0,95408.0,0.3608]
[1732797445470,0.15956,95421.0,95420.0,0.052381]
[1732797446768,0.15956,95426.0,95416.0,0.3608]
[1732797446971,0.15956,95426.0,95425.0,0.052378]
[1732797447876,0.052377,95428.0,95427.0,0.052377]
[1732797448263,0.53228418,95431.0,95416.0,0.3608]
[1732797448264,0.052381,95421.0,95416.0,0.3608]
[1732797448459,0.12653212,95430.0,95417.0,0.01310273]
[1732797448766,0.12653212,95430.0,95416.0,0.4247366]
[1732797448767,0.052383,95417.0,95416.0,0.4247366]
[1732797448973,0.052383,95417.0,95416.0,0.43611181]
[1732797449669,0.0323,95419.0,95413.0,0.01168527]
[1732797449866,0.0323,95419.0,95412.0,0.052385]
[1732797450063,0.052385,95413.0,95412.0,0.052385]
[1732797450469,0.052388,95408.0,95407.0,0.052388]
[1732797450772,0.052388,95407.0,95406.0,0.3608]
[1732797451773,0.05239,95404.0,95369.0,0.3608]
[1732797452072,0.052389,95406.0,95369.0,0.3608]
[1732797452073,0.052408,95372.0,95369.0,0.3608]
[1732797452463,0.04156414,95371.0,95369.0,0.3608]
[1732797452661,0.04156414,95371.0,95370.0,0.0001045]
[1732797452662,0.09397214,95371.0,95370.0,0.0001045]
[1732797452866,0.09397002,95371.0,95370.0,0.0001045]
[1732797453475,0.1081931,95371.0,95370.0,0.0001045]
[1732797453974,0.0226851,95371.0,95370.0,0.0001045]
[1732797454364,0.0226851,95371.0,95370.0,0.0041045]
[1732797455878,0.00846202,95371.0,95370.0,0.0111045]
[1732797457175,0.0226851,95371.0,95370.0,0.0111045]
[1732797457677,0.00846202,95371.0,95370.0,0.0111045]
[1732797458076,0.01759731,95371.0,95370.0,0.0111045]
[1732797458270,0.03221378,95371.0,95370.0,0.0111045]
[1732797458464,0.01614287,95378.0,95370.0,0.33877319]
[1732797458671,0.01614287,95382.0,95380.0,0.052403]
[1732797459275,0.01614287,95382.0,95378.0,0.0327]
[1732797459667,0.0524,95387.0,95378.0,0.0327]
[1732797459870,0.01478966,95386.0,95380.0,0.001]
[1732797460075,0.01478966,95385.0,95381.0,0.01310768]
[1732797460279,0.01478966,95384.0,95380.0,0.001]
[1732797460567,0.01478966,95383.0,95381.0,0.06550968]
[1732797460768,0.01478966,95382.0,95381.0,0.052402]
[1732797461077,0.3608,95390.0,95381.0,0.01310766]
[1732797461272,0.01478832,95389.0,95382.0,0.01310766]
[1732797461470,0.01478832,95388.0,95383.0,0.01310766]
[1732797461671,0.01478832,95388.0,95381.0,0.001]
[1732797461672,0.01478832,95388.0,95384.0,0.01310766]
[1732797461977,0.01478832,95387.0,95385.0,0.01310757]
[1732797462165,0.01478832,95386.0,95381.0,0.001]
[1732797462481,0.3608,95390.0,95384.0,0.052401]
[1732797462482,0.01478832,95385.0,95384.0,0.052401]
[1732797462680,0.01478832,95385.0,95384.0,0.06550818]
[1732797463267,0.01478832,95385.0,95384.0,0.01310718]
[1732797464381,0.01478832,95385.0,95384.0,0.01310716]
[1732797467980,0.01478832,95385.0,95384.0,0.01310705]
[1732797468183,0.01478832,95385.0,95383.0,0.052401]
[1732797468374,0.0306,95395.0,95383.0,0.052401]
[1732797468375,0.01478832,95384.0,95383.0,0.052401]
[1732797468578,0.01478832,95384.0,95383.0,0.06550805]
[1732797469388,0.01478832,95384.0,95383.0,0.06550785]
[1732797469681,0.18619883,95414.0,95383.0,0.06550785]
[1732797469682,0.0304,95408.0,95395.0,0.052395]
[1732797469983,0.0304,95408.0,95395.0,0.42630039]
[1732797470282,0.15519259,95419.0,95395.0,0.74078039]
[1732797470283,0.052383,95418.0,95395.0,0.74078039]
[1732797470484,0.0302,95420.0,95408.0,0.48733212]
[1732797470680,0.15519259,95426.0,95408.0,0.48733212]
[1732797470681,0.00872736,95419.0,95418.0,0.052382]
[1732797470877,0.00872793,95426.0,95424.0,0.052378]
[1732797471186,0.00872802,95425.0,95424.0,0.052378]
[1732797473078,0.00972802,95425.0,95424.0,0.053378]
[1732797473682,0.01372802,95425.0,95418.0,0.3608]
[1732797473975,0.052381,95420.0,95418.0,0.37247052]
[1732797474175,0.00872802,95419.0,95418.0,0.42485252]
[1732797474375,0.00872802,95424.0,95418.0,0.42485252]
[1732797474581,0.00918982,95423.0,95420.0,0.052381]
[1732797474781,0.057379,95425.0,95420.0,0.052381]
[1732797474782,0.00918982,95422.0,95420.0,0.052381]
[1732797474991,0.00918982,95421.0,95420.0,0.052381]
[1732797475287,0.052382,95419.0,95418.0,0.3608]
[1732797475584,0.052382,95419.0,95408.0,0.36236]
[1732797475585,0.01218982,95419.0,95416.0,0.3608]
[1732797475791,0.003,95419.0,95418.0,0.052382]
[1732797476287,0.052382,95418.0,95416.0,0.3608]
[1732797476589,0.00924218,95417.0,95416.0,0.3608]
[1732797478581,0.01124218,95417.0,95416.0,0.3608]
[1732797479087,0.01137841,95417.0,95416.0,0.3608]
[1732797479386,0.01237841,95417.0,95416.0,0.3608]
[1732797479686,0.01237841,95417.0,95416.0,0.413183]
[1732797479687,0.01802054,95417.0,95416.0,0.413183]
[1732797479891,0.003,95417.0,95416.0,0.413183]
[1732797480089,0.02739895,95417.0,95416.0,0.413183]
[1732797480992,0.07895364,95417.0,95416.0,0.3608]
[1732797481485,0.07895364,95417.0,95413.0,0.052385]
[1732797481486,0.02656775,95417.0,95413.0,0.052385]
[1732797481688,0.05557951,95416.0,95408.0,0.18004246]
[1732797481889,0.05557951,95416.0,95409.0,0.052387]
[1732797481890,0.02337951,95415.0,95409.0,0.052387]
[1732797482293,0.052384,95414.0,95413.0,0.052385]
[1732797482586,0.07576351,95414.0,95413.0,0.052385]
[1732797482889,0.07576351,95414.0,95413.0,0.06548802]
[1732797483390,0.07576351,95414.0,95413.0,0.052385]
[1732797483687,0.0322,95416.0,95405.0,0.3608]
[1732797483988,0.0332,95416.0,95415.0,0.052384]
[1732797484189,0.04768502,95416.0,95415.0,0.052384]
[1732797484389,0.0567397,95416.0,95415.0,0.052384]
[1732797485588,0.0587397,95416.0,95415.0,0.052384]
[1732797486190,0.0577397,95416.0,95415.0,0.052384]
[1732797486591,0.04325468,95416.0,95415.0,0.052384]
[1732797486885,0.04425468,95416.0,95415.0,0.052384]
[1732797487984,0.09663768,95416.0,95415.0,0.052384]
[1732797488183,0.052384,95415.0,95414.0,0.3608]
[1732797488386,0.06143868,95415.0,95405.0,0.3608]
[1732797488579,0.052389,95406.0,95405.0,0.3608]
[1732797488783,0.07558868,95406.0,95405.0,0.37265798]
[1732797489287,0.07558868,95406.0,95405.0,0.01185798]
[1732797489493,0.052389,95405.0,95404.0,0.05396214]
[1732797489683,0.06144368,95405.0,95404.0,0.05396214]
[1732797489881,0.06144368,95405.0,95404.0,0.05239]
[1732797490297,0.06144368,95405.0,95404.0,0.06398076]
[1732797490590,0.18552268,95405.0,95404.0,0.01159076]
[1732797490794,0.18552268,95405.0,95399.0,0.052393]
[1732797490795,0.052392,95400.0,95399.0,0.052393]
[1732797490997,0.15467964,95400.0,95399.0,0.06549807]
[1732797491187,0.06144668,95400.0,95399.0,0.06549807]
[1732797491383,0.06144668,95400.0,95399.0,0.01310507]
[1732797491583,0.052395,95394.0,95393.0,0.37268061]
[1732797491882,0.052395,95394.0,95393.0,0.43818185]
[1732797491883,0.02326309,95394.0,95393.0,0.43818185]
[1732797492288,0.07565809,95394.0,95393.0,0.43818185]
[1732797492489,0.06144968,95394.0,95393.0,0.43818185]
[1732797492695,0.00905468,95394.0,95393.0,0.43818185]
[1732797493391,0.06144968,95394.0,95393.0,0.43818185]
[1732797493785,0.06144968,95394.0,95393.0,0.42907661]
[1732797493786,0.052395,95394.0,95393.0,0.42907661]
[1732797493986,0.06112249,95394.0,95393.0,0.42907661]
[1732797494394,0.06112249,95394.0,95393.0,0.43507661]
[1732797495491,0.06112249,95394.0,95393.0,0.38268061]
[1732797495791,0.06112249,95394.0,95393.0,0.01]
[1732797495988,0.06112249,95394.0,95393.0,0.062396]
[1732797496593,0.06112249,95394.0,95393.0,0.01]
[1732797496989,0.15440661,95394.0,95393.0,0.01]
[1732797497294,0.06112249,95394.0,95393.0,0.01]
[1732797497896,0.052404,95378.0,95377.0,0.052404]
[1732797498192,0.052404,95378.0,95373.0,0.42628376]
[1732797498193,0.052406,95374.0,95373.0,0.42628376]
[1732797498493,0.06113349,95374.0,95373.0,0.43939243]
[1732797499297,0.00872749,95374.0,95373.0,0.43939243]
[1732797499688,0.00872749,95374.0,95373.0,0.44339243]
[1732797500595,0.06113349,95374.0,95373.0,0.44339243]
[1732797501298,0.06113349,95374.0,95373.0,0.44539243]
[1732797503400,0.00872749,95374.0,95373.0,0.44539243]
[1732797506695,0.00872749,95374.0,95373.0,0.44139243]
[1732797506890,0.00872749,95374.0,95373.0,0.44439243]
[1732797507596,0.00861164,95374.0,95373.0,0.44439163]
[1732797510592,0.06101764,95374.0,95373.0,0.44439163]
[1732797510995,0.00861164,95374.0,95373.0,0.44439163]
[1732797511596,0.00861164,95374.0,95373.0,0.44439189]
[1732797512500,0.09328805,95385.0,95373.0,0.44439189]
[1732797512501,0.09328805,95386.0,95382.0,0.052402]
[1732797512799,0.052403,95383.0,95382.0,0.052402]
[1732797513001,0.052406,95376.0,95375.0,0.052405]
[1732797513499,0.052406,95376.0,95375.0,0.06551341]
[1732797513900,0.052406,95376.0,95375.0,0.01310841]
[1732797514603,0.052406,95376.0,95370.0,0.0001045]
[1732797514604,0.052406,95374.0,95370.0,0.0001045]
[1732797514801,0.3608,95371.0,95347.0,0.3608]
[1732797515103,0.05242,95351.0,95350.0,0.052419]
[1732797515304,0.052421,95348.0,95347.0,0.3608]
[1732797515600,0.052422,95346.0,95345.0,0.052421]
[1732797515900,0.052422,95346.0,95345.0,0.05255034]
[1732797516691,0.052422,95346.0,95345.0,0.06238465]
[1732797518291,0.053422,95346.0,95345.0,0.07138465]
[1732797518699,0.001,95346.0,95345.0,0.07138465]
[1732797519103,0.002,95346.0,95345.0,0.07838465]
[1732797519901,0.054422,95346.0,95345.0,0.07838465]
[1732797520117,0.054422,95346.0,95345.0,0.06855034]
[1732797520602,0.06293045,95346.0,95345.0,0.06855034]
[1732797522692,0.06297526,95346.0,95345.0,0.06855034]
[1732797522895,0.06297526,95346.0,95345.0,0.01612934]
[1732797525004,0.07738939,95346.0,95345.0,0.01612934]
[1732797526104,0.063661,95346.0,95345.0,0.01612934]
[1732797526304,0.07519426,95346.0,95345.0,0.01612934]
[1732797526710,0.08997667,95346.0,95345.0,0.01512934]
[1732797527398,0.12317667,95346.0,95345.0,0.01512934]
[1732797527605,0.12317667,95346.0,95345.0,0.00064929]
[1732797528811,0.11164341,95346.0,95345.0,0.00072545]
[1732797532311,0.096861,95346.0,95345.0,0.00072545]
[1732797533204,0.11103355,95346.0,95345.0,0.00072545]
[1732797536212,0.11151808,95346.0,95345.0,0.00072545]
[1732797537908,0.27319808,95346.0,95345.0,0.00072545]
[1732797539107,0.27219808,95346.0,95345.0,0.00107616]
[1732797539523,0.27119808,95346.0,95345.0,0.00107616]
[1732797539717,0.27119808,95346.0,95345.0,0.00607616]
[1732797540433,0.07631808,95346.0,95345.0,0.36687616]
[1732797540716,0.02389608,95346.0,95345.0,0.41929816]
[1732797541112,0.07631808,95346.0,95345.0,0.41929816]
[1732797541616,0.07631808,95346.0,95345.0,0.36687616]
[1732797542011,0.16961407,95346.0,95345.0,0.36687616]
[1732797542213,0.0616128,95346.0,95345.0,0.41929816]
[1732797543219,0.18624686,95346.0,95345.0,0.41929816]
[1732797543619,0.13382486,95346.0,95345.0,0.41929816]
[1732797543916,0.0091908,95346.0,95345.0,0.42913226]
[1732797545327,0.09357708,95348.0,95345.0,0.37671026]
[1732797545624,0.12463406,95350.0,95347.0,0.052421]
[1732797545919,0.09356682,95348.0,95347.0,0.052421]
[1732797546122,0.00854244,95349.0,95348.0,0.052421]
[1732797546317,0.00854244,95349.0,95348.0,0.06225448]
[1732797546517,0.17705306,95351.0,95348.0,0.00983348]
[1732797546718,0.17705306,95351.0,95345.0,0.36687616]
[1732797546719,0.00850836,95350.0,95349.0,0.05242]
[1732797546915,0.06092836,95350.0,95349.0,0.05242]
[1732797547326,0.00850836,95350.0,95349.0,0.05242]
[1732797547522,0.00850836,95350.0,95349.0,0.30384042]
[1732797548123,0.00850836,95350.0,95349.0,0.05542]
[1732797548622,0.12474527,95354.0,95353.0,0.052418]
[1732797548823,0.12474527,95354.0,95353.0,0.413218]
[1732797549022,0.13322954,95354.0,95353.0,0.413218]
[1732797549721,0.13322954,95354.0,95353.0,0.414218]
[1732797550524,0.13322954,95354.0,95353.0,0.415218]
[1732797550928,0.00848427,95354.0,95353.0,0.415218]
[1732797551128,0.13322954,95354.0,95353.0,0.415218]
[1732797551431,0.12474527,95356.0,95355.0,0.052417]
[1732797552624,0.12474527,95356.0,95355.0,0.053417]
[1732797553028,0.09354722,95356.0,95355.0,0.37785028]
[1732797553332,0.12474527,95366.0,95365.0,0.052411]
[1732797553532,0.12474527,95366.0,95365.0,0.413211]
[1732797553533,0.00838808,95366.0,95365.0,0.413211]
[1732797553730,0.00838808,95366.0,95365.0,0.42304428]
[1732797554421,0.00838808,95366.0,95365.0,0.413211]
[1732797554828,0.01338808,95366.0,95365.0,0.413211]
[1732797555128,0.01538808,95366.0,95365.0,0.413211]
[1732797555330,0.007,95366.0,95365.0,0.4230429]
[1732797555728,0.007,95366.0,95365.0,0.43485157]
[1732797556133,0.059411,95366.0,95365.0,0.0098319]
[1732797556327,0.052412,95363.0,95362.0,0.413213]
[1732797556527,0.06122353,95363.0,95362.0,0.052413]
[1732797557129,0.06122353,95363.0,95362.0,0.06224549]
[1732797557332,0.06122353,95363.0,95362.0,0.42513936]
[1732797557534,0.06522353,95363.0,95362.0,0.42513936]
[1732797557846,0.01281153,95363.0,95357.0,0.052415]
[1732797558036,0.052415,95358.0,95357.0,0.052415]
[1732797558333,0.06122653,95358.0,95357.0,0.052415]
[1732797558738,0.06127004,95358.0,95357.0,0.052415]
[1732797559241,0.00885504,95358.0,95357.0,0.052415]
[1732797561540,0.06227004,95358.0,95357.0,0.052415]
[1732797562127,0.053415,95358.0,95357.0,0.052415]
[1732797562635,0.06223141,95358.0,95357.0,0.052415]
[1732797563145,0.18688795,95358.0,95357.0,0.052415]
[1732797564134,0.13447295,95358.0,95357.0,0.052415]
[1732797564331,0.00981641,95358.0,95357.0,0.052415]
[1732797564537,0.00981641,95358.0,95357.0,0.0622477]
[1732797565235,0.00981641,95358.0,95357.0,0.052415]
[1732797565837,0.13447295,95358.0,95357.0,0.052415]
[1732797566227,0.13452023,95358.0,95357.0,0.052415]
[1732797566433,0.00981641,95358.0,95357.0,0.052415]
[1732797567636,0.06223141,95358.0,95357.0,0.052415]
[1732797568239,0.06223141,95358.0,95353.0,0.37248049]
[1732797568240,0.00981641,95358.0,95353.0,0.37248049]
[1732797568436,0.00981641,95358.0,95353.0,0.42489749]
[1732797568437,0.052417,95354.0,95353.0,0.42489749]
[1732797568735,0.052417,95354.0,95353.0,0.01168049]
[1732797568736,0.06123341,95354.0,95353.0,0.01168049]
[1732797568934,0.00881641,95354.0,95352.0,0.052418]
[1732797569135,0.06123441,95353.0,95352.0,0.052418]
[1732797569339,0.21654235,95353.0,95352.0,0.052418]
[1732797569531,0.18597153,95353.0,95352.0,0.052418]
[1732797569731,0.06123441,95353.0,95352.0,0.052418]
[1732797570036,0.06123441,95353.0,95352.0,0.06396345]
[1732797570236,0.18597153,95353.0,95352.0,0.06396345]
[1732797570436,0.06123441,95353.0,95352.0,0.06396345]
[1732797571138,0.06123441,95353.0,95352.0,0.06596345]
[1732797571645,0.18600621,95353.0,95352.0,0.002]
[1732797571937,0.42686219,95353.0,95342.0,0.01173281]
[1732797572131,0.052422,95346.0,95337.0,0.3608]
[1732797572332,0.06123841,95346.0,95337.0,0.3608]
[1732797572543,0.21719122,95346.0,95338.0,0.052426]
[1732797572738,0.06123841,95346.0,95338.0,0.052426]
[1732797573041,0.21907841,95346.0,95338.0,0.052426]
[1732797573228,0.37503122,95346.0,95338.0,0.052426]
[1732797573427,0.21907841,95346.0,95338.0,0.052426]
[1732797573632,0.21907841,95346.0,95345.0,0.00107616]
[1732797573835,0.052426,95339.0,95338.0,0.052426]
[1732797574040,0.06124241,95339.0,95338.0,0.06226132]
[1732797574728,0.06124241,95339.0,95338.0,0.06234403]
[1732797575441,0.06124241,95339.0,95338.0,0.06934403]
[1732797575442,0.06324241,95339.0,95338.0,0.06934403]
[1732797577238,0.06324241,95339.0,95338.0,0.05950871]
[1732797577942,0.06324241,95339.0,95338.0,0.06934386]
[1732797578449,0.054426,95339.0,95338.0,0.06934386]
[1732797578938,0.054426,95339.0,95338.0,0.05950871]
[1732797579142,0.06287232,95339.0,95338.0,0.05950871]
[1732797579841,0.07131877,95339.0,95338.0,0.05950871]
[1732797580246,0.06287232,95339.0,95338.0,0.05950871]
[1732797580544,0.06287232,95339.0,95338.0,0.06934385]
[1732797581646,0.01044632,95339.0,95338.0,0.06934385]
[1732797582145,0.06287232,95339.0,95338.0,0.06934385]
[1732797582659,0.06287232,95339.0,95338.0,0.05950871]
[1732797584251,0.01891273,95339.0,95338.0,0.05950871]
[1732797584645,0.01891273,95339.0,95338.0,0.0693434]
[1732797585147,0.01891273,95339.0,95338.0,0.06934368]
[1732797585953,0.01902909,95339.0,95338.0,0.06934368]
[1732797586549,0.07145509,95339.0,95338.0,0.05950871]
[1732797586743,0.01902909,95339.0,95338.0,0.06934373]
[1732797586945,0.07145509,95339.0,95338.0,0.01691777]
[1732797587145,0.07145509,95339.0,95338.0,0.00708271]
[1732797587548,0.08603157,95339.0,95338.0,0.00708271]
[1732797588357,0.08503157,95339.0,95338.0,8.271e-05]
[1732797588547,0.08603157,95339.0,95338.0,0.00508271]
[1732797588954,0.08403157,95339.0,95338.0,8.271e-05]
[1732797589250,0.08403157,95339.0,95338.0,0.00208271]
[1732797590752,0.44483157,95339.0,95338.0,0.00208271]
[1732797591551,0.39240557,95339.0,95323.0,0.36237353]
[1732797591753,0.052433,95328.0,95327.0,0.052432]
[1732797591958,0.02315925,95328.0,95327.0,0.00983578]
[1732797592259,0.02315925,95328.0,95323.0,0.36237353]
[1732797592260,0.00858277,95328.0,95323.0,0.36237353]
[1732797592450,0.01457648,95332.0,95323.0,0.36237353]
[1732797592451,0.052434,95324.0,95323.0,0.05400753]
[1732797592757,0.0088124,95324.0,95323.0,0.06694891]
[1732797593754,0.02343393,95324.0,95323.0,0.05711226]
[1732797594560,0.02343393,95324.0,95323.0,0.05411226]
[1732797595154,0.07786793,95324.0,95323.0,0.05411226]
[1732797595750,0.02543393,95324.0,95323.0,0.05411226]